bitfinex/quotes_BTCUSD_20250513
["timestamp","ask_amount","ask_price","bid_price","bid_amount"]
[1747172495936,0.06594711,104440.0,104430.0,1.54593517]
[1747172496145,0.06594711,104440.0,104430.0,0.94532211]
[1747172496329,0.06594711,104440.0,104430.0,1.5538801]
[1747172496534,0.06694711,104440.0,104430.0,1.5588801]
[1747172496753,0.001,104440.0,104430.0,1.5588801]
[1747172497753,0.001,104440.0,104430.0,1.6561895]
[1747172497962,0.002,104440.0,104430.0,1.6611895]
[1747172498164,0.002,104440.0,104430.0,1.67570334]
[1747172498562,0.002,104440.0,104430.0,2.08910334]
[1747172502611,0.01157405,104440.0,104430.0,2.08910334]
[1747172502781,0.002,104440.0,104430.0,2.08910334]
[1747172503724,0.01157405,104440.0,104430.0,2.08910334]
[1747172503872,0.002,104440.0,104430.0,2.08910334]
[1747172511417,0.02114699,104450.0,104440.0,0.49180404]
[1747172511637,0.02114699,104450.0,104440.0,0.70279342]
[1747172511846,0.02114699,104450.0,104440.0,0.72194243]
[1747172511847,0.02114635,104450.0,104440.0,0.72194243]
[1747172512053,0.03071975,104450.0,104440.0,0.72194261]
[1747172512277,0.03071985,104450.0,104440.0,0.72194261]
[1747172512498,0.002,104450.0,104440.0,0.73931684]
[1747172512713,0.01257313,104450.0,104440.0,0.74331684]
[1747172512927,0.003,104450.0,104440.0,0.73551684]
[1747172513137,0.003,104450.0,104440.0,0.78640414]
[1747172513348,0.00035558,104450.0,104440.0,0.74331684]
[1747172513556,0.05005242,104460.0,104450.0,0.54105312]
[1747172513761,0.05005242,104460.0,104450.0,1.0250257]
[1747172513967,0.05962546,104460.0,104450.0,1.0250257]
[1747172514388,0.04402546,104460.0,104450.0,1.0250257]
[1747172514597,0.04402546,104460.0,104450.0,1.45757324]
[1747172514598,0.0095723,104460.0,104450.0,1.45757324]
[1747172514801,0.0115723,104460.0,104450.0,1.48194674]
[1747172515012,0.01157221,104460.0,104450.0,1.48194674]
[1747172515223,0.01057221,104460.0,104450.0,1.48852014]
[1747172515430,0.01157221,104460.0,104450.0,1.50309345]
[1747172515640,0.0201447,104460.0,104450.0,1.47214683]
[1747172515823,0.0211447,104460.0,104450.0,1.47814683]
[1747172516392,0.0211447,104460.0,104450.0,1.46857324]
[1747172516863,0.0201447,104460.0,104450.0,1.46357324]
[1747172517073,0.0211447,104460.0,104450.0,1.46657324]
[1747172517825,0.0211447,104460.0,104450.0,1.47437324]
[1747172519224,0.0211447,104460.0,104450.0,1.46657324]
[1747172520547,0.04029013,104460.0,104450.0,1.46657333]
[1747172520760,0.05559013,104460.0,104450.0,1.2541857]
[1747172520971,0.07059013,104460.0,104450.0,1.64955947]
[1747172522613,0.08016308,104460.0,104450.0,1.64955947]
[1747172523321,0.08016308,104460.0,104450.0,1.64955956]
[1747172523814,0.26205171,104460.0,104450.0,1.64947965]
[1747172524029,0.24290664,104460.0,104450.0,1.6399057]
[1747172524238,0.23333379,104460.0,104450.0,0.95556]
[1747172524668,0.33064319,104460.0,104450.0,0.7624]
[1747172525554,0.33064319,104460.0,104450.0,0.349]
[1747172532359,0.33064319,104460.0,104450.0,0.009]
[1747172532951,0.52292319,104460.0,104450.0,0.009]
[1747172534401,0.82322972,104460.0,104450.0,0.009]
[1747172535215,0.52292319,104460.0,104450.0,0.009]
[1747172542119,0.82322972,104460.0,104450.0,0.009]
[1747172543100,0.82222972,104460.0,104450.0,0.006]
[1747172543598,0.83222972,104460.0,104450.0,0.007]
[1747172543804,0.83122972,104460.0,104450.0,0.001]
[1747172544035,0.84022972,104460.0,104450.0,0.002]
[1747172548480,0.93753912,104460.0,104450.0,0.002]
[1747172548645,1.23784565,104460.0,104450.0,0.002]
[1747172548853,1.6123865,104460.0,104450.0,0.002]
[1747172556457,1.6033865,104460.0,104450.0,0.001]
[1747172556702,1.6223865,104460.0,104450.0,0.002]
[1747172557121,1.6123865,104460.0,104450.0,0.001]
[1747172557332,1.4247938,104460.0,104450.0,0.001]
[1747172559669,1.3274844,104460.0,104450.0,0.001]
[1747172560727,1.5184844,104460.0,104450.0,0.001]
[1747172564415,1.5184844,104460.0,104430.0,0.00014493]
[1747172564416,0.25184661,104440.0,104430.0,0.00014493]
[1747172564617,1.12505637,104440.0,104430.0,0.00014493]
[1747172566741,1.12805637,104440.0,104430.0,0.00014493]
[1747172566951,2.0803274,104440.0,104430.0,0.00014493]
[1747172567126,1.00085265,104430.0,104420.0,0.002]
[1747172567371,1.09816205,104430.0,104420.0,0.002]
[1747172568360,1.10816205,104430.0,104420.0,0.002]
[1747172568762,1.22347145,104430.0,104420.0,0.002]
[1747172569200,1.21347145,104430.0,104420.0,0.002]
[1747172570538,1.2313576,104430.0,104420.0,0.002]
[1747172571441,1.43822138,104430.0,104420.0,0.002]
[1747172572556,1.42822138,104430.0,104420.0,0.002]
[1747172575760,1.52822138,104430.0,104420.0,0.002]
[1747172575987,1.51405638,104430.0,104420.0,0.002]
[1747172576199,1.20753212,104410.0,104400.0,0.002]
[1747172576379,1.78235092,104410.0,104400.0,0.002]
[1747172577284,1.79735092,104410.0,104400.0,0.002]
[1747172577915,0.1916443,104360.0,104350.0,0.01450113]
[1747172578130,0.20124562,104350.0,104340.0,0.002]
[1747172578340,0.29855502,104350.0,104340.0,0.002]
[1747172578781,0.29855502,104350.0,104340.0,0.01956758]
[1747172579113,0.29855502,104350.0,104340.0,0.004995]
[1747172579317,0.29855502,104350.0,104340.0,0.00547658]
[1747172579749,0.20124562,104350.0,104340.0,0.00547658]
[1747172579962,0.20124562,104350.0,104340.0,0.19715762]
[1747172580180,0.02874736,104350.0,104340.0,0.89388994]
[1747172580396,0.03833031,104350.0,104340.0,1.06613423]
[1747172580611,0.03833021,104350.0,104340.0,1.05655083]
[1747172580823,0.22241123,104350.0,104340.0,1.05209757]
[1747172580962,0.22241123,104350.0,104340.0,1.06168134]
[1747172581187,0.22341123,104350.0,104340.0,1.06168134]
[1747172581405,0.22341123,104350.0,104340.0,1.07126502]
[1747172581604,0.01258249,104350.0,104340.0,2.19936949]
[1747172581850,0.003,104350.0,104340.0,1.88327889]
[1747172582584,0.003,104350.0,104340.0,1.90056019]
[1747172583591,0.03832325,104370.0,104360.0,0.22038983]
[1747172583810,0.03832325,104370.0,104360.0,0.9032669]
[1747172584654,0.03832325,104370.0,104360.0,0.90326699]
[1747172584900,0.03832325,104370.0,104360.0,0.91284856]
[1747172585098,0.04032325,104370.0,104360.0,0.91284856]
[1747172585296,0.04032325,104370.0,104360.0,1.25284856]
[1747172585505,0.04032325,104370.0,104360.0,1.66624856]
[1747172585926,0.03074214,104370.0,104360.0,1.66624856]
[1747172586131,0.04032325,104370.0,104360.0,1.66624856]
[1747172586337,0.03074214,104370.0,104360.0,1.65766699]
[1747172586496,0.03074214,104370.0,104360.0,1.66724856]
[1747172587883,0.04032325,104370.0,104360.0,1.66724856]
[1747172588093,0.03074214,104370.0,104360.0,1.66724856]
[1747172590635,0.04990445,104370.0,104360.0,1.26864533]
[1747172590745,0.04990445,104370.0,104360.0,1.46842708]
[1747172591896,0.21278825,104370.0,104360.0,1.1392393]
[1747172592157,0.21278825,104370.0,104360.0,1.3277593]
[1747172592377,0.41911972,104370.0,104360.0,0.757395]
[1747172592580,0.41911972,104370.0,104360.0,0.417395]
[1747172592716,0.51642912,104370.0,104360.0,0.003995]
[1747172592956,0.70662912,104370.0,104360.0,0.003995]
[1747172593161,0.70662912,104370.0,104360.0,0.001]
[1747172593359,1.00707119,104370.0,104360.0,0.001]
[1747172594300,0.70662912,104370.0,104360.0,0.001]
[1747172594500,0.60931972,104370.0,104360.0,0.001]
[1747172596260,0.21082829,104350.0,104340.0,0.35976288]
[1747172596467,0.30813769,104350.0,104340.0,0.35976288]
[1747172597310,0.33963769,104350.0,104340.0,0.35976288]
[1747172597515,0.34063769,104350.0,104340.0,0.36376288]
[1747172597764,0.34163769,104350.0,104340.0,0.36776288]
[1747172597972,0.34163769,104350.0,104340.0,0.37075784]
[1747172601980,0.34163769,104350.0,104340.0,0.36776288]
[1747172602172,0.34163769,104350.0,104340.0,0.37075779]
[1747172620638,0.34163769,104350.0,104340.0,0.3707577]
[1747172633050,0.34163769,104350.0,104340.0,0.36776288]
[1747172638667,0.34163769,104350.0,104340.0,0.02776288]
[1747172638897,0.34163769,104350.0,104340.0,0.03075781]
[1747172639106,0.60575976,104350.0,104340.0,0.03075781]
[1747172639698,0.8030104,104350.0,104340.0,0.03075781]
[1747172640114,0.60575976,104350.0,104340.0,0.03075781]
[1747172640397,0.60475976,104350.0,104340.0,0.02675781]
[1747172641653,0.52823769,104350.0,104340.0,0.02575781]
[1747172641877,0.52823769,104350.0,104340.0,0.02875781]
[1747172642088,0.52923769,104350.0,104340.0,0.02875781]
[1747172644241,0.34163769,104350.0,104340.0,0.02875781]
[1747172644486,0.24432829,104350.0,104340.0,0.39135866]
[1747172644758,0.24432829,104350.0,104340.0,0.36875781]
[1747172644759,0.34163769,104350.0,104340.0,0.36875781]
[1747172644976,0.34163769,104350.0,104340.0,0.36576288]
[1747172650420,0.34163769,104350.0,104340.0,0.14098023]
[1747172650780,0.2012649,104340.0,104330.0,0.86743134]
[1747172650994,0.21084867,104340.0,104330.0,0.88660118]
[1747172651169,0.21084867,104340.0,104330.0,0.89618596]
[1747172651407,0.0095835,104340.0,104330.0,0.90576936]
[1747172651584,0.01916746,104340.0,104330.0,0.90576936]
[1747172652078,0.02975114,104340.0,104330.0,0.90018513]
[1747172652202,0.03933454,104340.0,104330.0,0.90976945]
[1747172652438,0.23101558,104340.0,104330.0,1.24976945]
[1747172652655,0.03933444,104340.0,104330.0,1.24976945]
[1747172652884,0.04033444,104340.0,104330.0,1.25276945]
[1747172653166,0.0499184,104340.0,104330.0,1.25276945]
[1747172653388,0.002,104340.0,104330.0,2.07994281]
[1747172653600,0.01158322,104340.0,104330.0,2.56126381]
[1747172653801,0.02922904,104350.0,104340.0,0.22043208]
[1747172653999,0.02922904,104350.0,104340.0,1.16165594]
[1747172654537,0.01006361,104350.0,104340.0,1.16165594]
[1747172654739,0.019646,104350.0,104340.0,1.16165594]
[1747172654972,0.05039438,104350.0,104340.0,1.16565594]
[1747172655178,0.03122913,104350.0,104340.0,1.16565594]
[1747172655387,0.03122904,104350.0,104340.0,1.39993494]
[1747172655551,0.0120637,104350.0,104340.0,1.38319394]
[1747172655703,0.03122904,104350.0,104340.0,1.43133934]
[1747172655921,0.04081199,104350.0,104340.0,1.41932334]
[1747172656129,0.04081199,104350.0,104340.0,1.38393334]
[1747172656394,0.21330978,104350.0,104340.0,0.64461193]
[1747172656586,0.22910978,104350.0,104340.0,0.64461193]
[1747172656794,0.24540978,104350.0,104340.0,0.64461193]
[1747172657016,0.25499254,104350.0,104340.0,0.84587693]
[1747172657158,0.25499254,104350.0,104340.0,0.85546079]
[1747172657361,0.24540996,104350.0,104340.0,0.64461193]
[1747172657565,0.24540996,104350.0,104340.0,1.24969297]
[1747172657769,0.23582711,104350.0,104340.0,1.24969297]
[1747172657987,0.24540996,104350.0,104340.0,1.2688606]
[1747172658195,0.24540996,104350.0,104340.0,1.25927683]
[1747172658537,0.25499227,104350.0,104340.0,1.24969297]
[1747172658750,0.25499227,104350.0,104340.0,1.25927683]
[1747172658751,0.26457457,104350.0,104340.0,1.25927683]
[1747172659190,0.2645754,104350.0,104340.0,1.25927683]
[1747172659406,0.07291273,104350.0,104340.0,1.25927683]
[1747172659546,0.25499227,104350.0,104340.0,1.25927683]
[1747172659764,0.0633296,104350.0,104340.0,1.26886042]
[1747172659965,0.0633296,104350.0,104340.0,1.25927683]
[1747172660172,0.07291273,104350.0,104340.0,1.2688606]
[1747172660397,0.07291273,104350.0,104340.0,1.27844428]
[1747172661126,0.07291273,104350.0,104340.0,1.26886051]
[1747172661532,0.2645754,104350.0,104340.0,1.25927683]
[1747172661737,0.2645754,104350.0,104340.0,1.24969297]
[1747172661937,0.2645754,104350.0,104340.0,1.2688606]
[1747172662707,0.2645754,104350.0,104340.0,1.25927683]
[1747172662862,0.2645754,104350.0,104340.0,1.2688606]
[1747172663241,0.2645754,104350.0,104340.0,1.25927683]
[1747172663903,0.2645754,104350.0,104340.0,1.2688606]
[1747172664814,0.06332895,104350.0,104340.0,1.27844428]
[1747172665030,0.06332895,104350.0,104340.0,1.28802768]
[1747172665248,0.06332904,104350.0,104340.0,1.28802768]
[1747172665460,0.06332895,104350.0,104340.0,1.28802768]
[1747172666093,0.05374619,104350.0,104340.0,1.28802768]
[1747172666307,0.06332904,104350.0,104340.0,1.28802768]
[1747172667196,0.06332904,104350.0,104340.0,1.27844428]
[1747172667506,0.06332904,104350.0,104340.0,1.28802768]
[1747172667941,0.06332904,104350.0,104340.0,1.58863961]
[1747172668185,0.06332904,104350.0,104340.0,1.28802768]
[1747172668680,0.06332904,104350.0,104340.0,1.27844428]
[1747172668886,0.06332904,104350.0,104340.0,1.29761137]
[1747172669335,0.06332904,104350.0,104340.0,1.39135634]
[1747172671260,0.25499245,104350.0,104340.0,1.53087794]
[1747172671682,0.25499245,104350.0,104340.0,1.55004595]
[1747172672058,0.25499245,104350.0,104340.0,1.55962981]
[1747172672495,0.25499245,104350.0,104340.0,1.34343794]
[1747172672702,0.24540987,104350.0,104340.0,1.33369949]
[1747172674815,0.23582702,104350.0,104340.0,1.33369949]
[1747172675905,0.23582702,104350.0,104340.0,1.53087794]
[1747172676113,0.23582702,104350.0,104340.0,0.7574]
[1747172678504,0.23582702,104350.0,104340.0,0.344]
[1747172678827,0.23582702,104350.0,104340.0,0.004]
[1747172679904,0.33313642,104350.0,104340.0,0.004]
[1747172685033,0.33313642,104350.0,104340.0,0.20117845]
[1747172686542,0.33313642,104350.0,104340.0,0.004]
[1747172686755,0.33313642,104350.0,104340.0,0.20117845]
[1747172692502,0.33313642,104350.0,104340.0,0.004]
[1747172693246,0.33313642,104350.0,104340.0,0.20117845]
[1747172694907,0.33313642,104350.0,104340.0,0.004]
[1747172705663,0.33313642,104350.0,104340.0,0.0069951]
[1747172706627,0.33313642,104350.0,104340.0,0.004]
[1747172715725,0.33313642,104350.0,104340.0,0.00699519]
[1747172716452,0.33313642,104350.0,104340.0,0.00709405]
[1747172717646,0.52049642,104350.0,104340.0,0.00709405]
[1747172719359,0.33313642,104350.0,104340.0,0.40168175]
[1747172719544,0.00248131,104350.0,104340.0,1.44407708]
[1747172719768,0.00248131,104350.0,104340.0,1.75560466]
[1747172719992,0.00248131,104350.0,104340.0,1.55831081]
[1747172720215,0.01206361,104350.0,104340.0,1.49386781]
[1747172720429,0.00248131,104350.0,104340.0,1.69116166]
[1747172720665,0.01106361,104350.0,104340.0,1.68916166]
[1747172720849,0.01006361,104350.0,104340.0,1.44855069]
[1747172721021,0.01106361,104350.0,104340.0,1.39515196]
[1747172721310,0.01106361,104350.0,104340.0,1.42725711]
[1747172721311,0.01206361,104350.0,104340.0,1.42725711]
[1747172721470,0.01206361,104350.0,104340.0,1.62455096]
[1747172721669,0.03122886,104350.0,104340.0,1.09696549]
[1747172721902,0.04081181,104350.0,104340.0,1.11613267]
[1747172722102,0.03122886,104350.0,104340.0,1.12571607]
[1747172722482,0.04081171,104350.0,104340.0,1.11613267]
[1747172722690,0.04081171,104350.0,104340.0,1.12571607]
[1747172723598,0.03122886,104350.0,104340.0,1.12571607]
[1747172724040,0.0216461,104350.0,104340.0,1.12571607]
[1747172724231,0.03122877,104350.0,104340.0,1.12571607]
[1747172725621,0.0216461,104350.0,104340.0,1.12571607]
[1747172726059,0.00248131,104350.0,104340.0,1.12571607]
[1747172726277,0.00248131,104350.0,104340.0,1.32300992]
[1747172726490,0.00248131,104350.0,104340.0,2.04242332]
[1747172729377,0.00248131,104350.0,104340.0,2.02962932]
[1747172732855,0.03832646,104360.0,104350.0,0.22041096]
[1747172733100,0.07072646,104360.0,104350.0,0.80266365]
[1747172733546,0.0161,104360.0,104350.0,1.31337305]
[1747172733888,0.0324,104360.0,104350.0,1.31337305]
[1747172734170,0.0334,104360.0,104350.0,1.32037305]
[1747172734374,0.001,104360.0,104350.0,1.32037305]
[1747172734569,0.0167,104360.0,104350.0,1.32037305]
[1747172734903,0.05186305,104360.0,104350.0,1.32037305]
[1747172735114,0.04228148,104360.0,104350.0,1.32037305]
[1747172735320,0.05186314,104360.0,104350.0,1.32037305]
[1747172735750,0.04228148,104360.0,104350.0,1.32037305]
[1747172735913,0.01058148,104360.0,104350.0,1.32037305]
[1747172736323,0.02628148,104360.0,104350.0,1.32037305]
[1747172736541,0.001,104360.0,104350.0,1.32037305]
[1747172737483,0.001,104360.0,104350.0,0.90697305]
[1747172737484,0.0167,104360.0,104350.0,0.90697305]
[1747172737682,0.0327,104360.0,104350.0,0.90697305]
[1747172738075,0.001,104360.0,104350.0,0.90697305]
[1747172738876,0.001,104360.0,104350.0,1.24697305]
[1747172739070,0.001,104360.0,104350.0,1.4442669]
[1747172739299,0.02116121,104370.0,104360.0,0.22038983]
[1747172739613,0.002,104370.0,104360.0,1.33979138]
[1747172740279,0.01158047,104370.0,104360.0,1.33979138]
[1747172740499,0.002,104370.0,104360.0,1.34279138]
[1747172740732,0.12070098,104390.0,104380.0,0.20118786]
[1747172740955,0.34102748,104390.0,104380.0,0.77367528]
[1747172741171,0.33144885,104390.0,104380.0,0.96107528]
[1747172742056,0.33244885,104390.0,104380.0,0.96507528]
[1747172742233,0.25592678,104390.0,104380.0,0.96507528]
[1747172743145,0.24634787,104390.0,104380.0,0.96507528]
[1747172743562,0.24634787,104390.0,104380.0,0.97908728]
[1747172749202,0.24634787,104390.0,104380.0,0.7874797]
[1747172749434,0.24634787,104390.0,104380.0,0.21530585]
[1747172749645,0.42017934,104390.0,104380.0,0.018012]
[1747172750001,0.42017934,104390.0,104380.0,0.004]
[1747172750353,0.23222633,104360.0,104350.0,0.79827884]
[1747172750558,0.23222633,104360.0,104350.0,0.72487884]
[1747172750766,0.23222633,104360.0,104350.0,0.52758499]
[1747172750984,0.23222633,104360.0,104350.0,0.72487884]
[1747172751550,0.23322633,104360.0,104350.0,0.38987884]
[1747172751731,0.33053573,104360.0,104350.0,0.34514499]
[1747172751957,0.33053573,104360.0,104350.0,0.00514499]
[1747172753126,0.33053573,104360.0,104350.0,0.00814499]
[1747172754898,0.32953573,104360.0,104350.0,0.00314499]
[1747172755140,0.33053573,104360.0,104350.0,0.00614499]
[1747172755349,0.33053573,104360.0,104350.0,0.00314499]
[1747172755525,0.33053573,104360.0,104350.0,0.00414499]
[1747172756347,0.32953573,104360.0,104350.0,0.00114499]
[1747172756557,0.33253573,104360.0,104350.0,0.00114499]
[1747172756760,0.33553573,104360.0,104350.0,0.00114499]
[1747172761200,0.52401573,104360.0,104350.0,0.00114499]
[1747172762194,0.52401573,104360.0,104340.0,0.002]
[1747172762195,0.23404562,104350.0,104340.0,0.002]
[1747172762366,0.51955502,104350.0,104340.0,0.00214504]
[1747172763784,0.51955502,104350.0,104340.0,0.00314504]
[1747172764397,0.52055502,104350.0,104340.0,0.00314504]
[1747172765380,0.51955502,104350.0,104340.0,0.00314504]
[1747172765696,0.52255502,104350.0,104340.0,0.00314504]
[1747172766150,0.52255502,104350.0,104340.0,0.00214504]
[1747172767005,0.20128419,104330.0,104320.0,0.01696987]
[1747172767220,0.33039359,104330.0,104320.0,0.01696987]
[1747172768199,0.33139359,104330.0,104320.0,0.01896987]
[1747172768401,0.33139359,104330.0,104320.0,0.01996987]
[1747172770087,0.33139359,104330.0,104320.0,0.04681938]
[1747172770282,0.33139359,104330.0,104300.0,0.49430005]
[1747172770283,0.22391779,104320.0,104300.0,0.49430005]
[1747172770521,0.59711069,104310.0,104300.0,0.002]
[1747172770732,0.59471426,104310.0,104300.0,0.002]
[1747172771147,0.69202366,104310.0,104300.0,0.002]
[1747172771333,0.59471426,104310.0,104300.0,0.007]
[1747172771779,0.93471426,104310.0,104300.0,0.002]
[1747172771986,0.93476235,104310.0,104300.0,0.002]
[1747172772202,0.23174209,104300.0,104290.0,0.01]
[1747172772415,0.51761149,104300.0,104290.0,0.01]
[1747172773484,0.51861149,104300.0,104290.0,0.01]
[1747172773710,0.2332614,104290.0,104280.0,0.002]
[1747172773908,0.92979934,104290.0,104280.0,0.002]
[1747172774111,0.8586108,104290.0,104280.0,0.002]
[1747172774322,0.3305708,104290.0,104280.0,0.002]
[1747172775245,0.3325708,104290.0,104280.0,0.002]
[1747172775648,0.2352614,104290.0,104280.0,0.002]
[1747172776538,0.2372614,104290.0,104280.0,0.003]
[1747172779403,0.2372614,104290.0,104280.0,0.00599646]
[1747172781173,0.3345708,104290.0,104280.0,0.00599646]
[1747172783847,0.38720334,104290.0,104280.0,0.00599646]
[1747172784534,0.3345708,104290.0,104280.0,0.00599646]
[1747172784950,1.09053438,104290.0,104280.0,0.00599646]
[1747172785464,1.43053438,104290.0,104280.0,0.00599646]
[1747172787954,1.43053438,104290.0,104280.0,0.003]
[1747172789567,1.0530908,104290.0,104280.0,0.003]
[1747172789791,1.35401231,104290.0,104280.0,0.003]
[1747172790003,1.0530908,104290.0,104280.0,0.003]
[1747172790225,1.35401231,104290.0,104280.0,0.003]
[1747172790642,1.45132171,104290.0,104280.0,0.003]
[1747172790863,1.35401231,104290.0,104280.0,0.003]
[1747172796592,1.0530908,104290.0,104280.0,0.003]
[1747172798707,1.0539708,104290.0,104280.0,0.003]
[1747172798911,0.3345708,104290.0,104280.0,0.003]
[1747172799115,0.3180708,104290.0,104280.0,0.003]
[1747172799781,0.3346708,104290.0,104280.0,0.003]
[1747172800212,0.3346708,104290.0,104280.0,0.00599672]
[1747172801006,0.3346708,104290.0,104280.0,0.003]
[1747172803602,0.3326708,104290.0,104280.0,0.003]
[1747172803819,0.3326708,104290.0,104280.0,0.004]
[1747172804442,0.3326708,104290.0,104280.0,0.003]
[1747172805289,0.3336708,104290.0,104280.0,0.003]
[1747172810219,0.3170708,104290.0,104280.0,0.19479133]
[1747172811096,0.3336708,104290.0,104280.0,0.003]
[1747172814852,0.3336708,104290.0,104280.0,0.19479133]
[1747172815643,0.3336708,104290.0,104280.0,0.003]
[1747172819748,0.3336708,104290.0,104280.0,0.19479133]
[1747172819946,0.3170708,104290.0,104280.0,0.19479133]
[1747172820391,0.3330708,104290.0,104280.0,0.19479133]
[1747172820631,0.34265917,104290.0,104280.0,0.19479133]
[1747172822265,0.32565917,104290.0,104280.0,0.19479133]
[1747172822462,0.32365917,104290.0,104280.0,0.19379133]
[1747172822668,0.32365917,104290.0,104280.0,0.19479133]
[1747172823248,0.32465917,104290.0,104280.0,0.19579133]
[1747172824525,0.34065917,104290.0,104280.0,0.19579133]
[1747172825432,0.21194977,104290.0,104280.0,0.19579133]
[1747172825639,0.22153832,104290.0,104280.0,0.19579133]
[1747172825874,0.22153832,104290.0,104280.0,0.49668757]
[1747172826059,0.25263832,104290.0,104280.0,0.49668757]
[1747172826293,0.22153832,104290.0,104280.0,0.49668757]
[1747172827037,0.23723832,104290.0,104280.0,0.49668757]
[1747172827652,0.22764995,104290.0,104280.0,0.49668757]
[1747172828335,0.22764995,104290.0,104280.0,0.49668757]
[1747172828986,0.24304995,104290.0,104280.0,0.49668757]
[1747172829197,0.01058791,104290.0,104280.0,0.84627713]
[1747172829396,0.02976418,104290.0,104280.0,1.15308381]
[1747172829571,0.02976418,104290.0,104280.0,1.16267337]
[1747172829780,0.02976409,104290.0,104280.0,1.17226284]
[1747172829984,0.001,104290.0,104280.0,1.80988132]
[1747172830219,0.001,104290.0,104280.0,1.50337964]
[1747172830366,0.01922087,104310.0,104290.0,0.58463804]
[1747172830571,0.02880666,104310.0,104300.0,0.52732587]
[1747172830776,0.0383931,104310.0,104300.0,0.52732596]
[1747172831199,0.01922032,104310.0,104300.0,0.52732596]
[1747172831405,0.01922032,104310.0,104300.0,0.54551341]
[1747172831608,0.01922032,104310.0,104300.0,0.53592596]
[1747172831837,0.01922032,104310.0,104300.0,1.70670604]
[1747172831838,4.809e-05,104310.0,104300.0,1.70670604]
[1747172832043,0.01917048,104320.0,104310.0,0.34]
[1747172832258,0.01917048,104320.0,104310.0,1.13352865]
[1747172832627,0.01917048,104320.0,104310.0,0.86730565]
[1747172832798,0.00958506,104320.0,104310.0,0.86730574]
[1747172833002,0.03075444,104330.0,104320.0,0.19171779]
[1747172833205,0.22245385,104330.0,104320.0,0.49261403]
[1747172833678,0.02116947,104330.0,104320.0,0.5072906]
[1747172833906,0.002,104330.0,104320.0,0.86646191]
[1747172834114,0.002,104330.0,104320.0,0.89154715]
[1747172834509,0.002,104330.0,104320.0,1.34039455]
[1747172834718,0.002,104330.0,104320.0,1.31049855]
[1747172835347,0.02116497,104350.0,104340.0,0.54126509]
[1747172835573,0.02116506,104350.0,104340.0,1.34093757]
[1747172835744,0.02116497,104350.0,104340.0,1.54908143]
[1747172836102,0.02116497,104350.0,104340.0,1.24818519]
[1747172836543,0.00214498,104350.0,104340.0,1.25776878]
[1747172836764,0.01172737,104350.0,104340.0,1.25776887]
[1747172837380,0.01172737,104350.0,104340.0,1.25776896]
[1747172837820,0.01172737,104350.0,104340.0,1.25876896]
[1747172838230,0.01172747,104350.0,104340.0,1.26835264]
[1747172838435,0.01172747,104350.0,104340.0,1.25876896]
[1747172838754,0.25465594,104350.0,104340.0,0.53268104]
[1747172838994,0.25465594,104350.0,104340.0,0.53884]
[1747172839105,0.41890492,104350.0,104340.0,0.001]
[1747172839336,0.61678492,104350.0,104340.0,0.001]
[1747172841008,0.61978492,104350.0,104340.0,0.001]
[1747172841441,0.2108687,104330.0,104320.0,0.01467657]
[1747172841690,0.23180349,104320.0,104310.0,0.83263185]
[1747172842854,0.23180349,104320.0,104310.0,0.83363185]
[1747172845405,0.23180349,104320.0,104310.0,0.83463185]
[1747172845608,0.23180349,104320.0,104310.0,0.84463185]
[1747172846129,0.2413891,104320.0,104310.0,0.85911846]
[1747172846355,0.23180349,104320.0,104310.0,0.85911846]
[1747172849556,0.23180349,104320.0,104310.0,0.55822222]
[1747172849764,0.32911289,104320.0,104310.0,0.02648661]
[1747172850909,0.32911289,104320.0,104310.0,0.012]
[1747172851028,0.32911289,104320.0,104310.0,0.011]
[1747172851440,0.33211289,104320.0,104310.0,0.01]
[1747172851640,0.33511289,104320.0,104310.0,0.011]
[1747172866473,0.33511289,104320.0,104310.0,0.01]
[1747172867250,0.33511289,104320.0,104310.0,0.009]
[1747172868066,0.33511289,104320.0,104310.0,0.008]
[1747172869093,0.33511289,104320.0,104310.0,0.007]
[1747172870389,0.33511289,104320.0,104310.0,0.006]
[1747172870965,0.33511289,104320.0,104310.0,0.005]
[1747172871497,0.33511289,104320.0,104310.0,0.004]
[1747172872362,0.33511289,104320.0,104310.0,0.003]
[1747172873282,0.33511289,104320.0,104310.0,0.002]
[1747172874165,0.33511289,104320.0,104310.0,0.001]
[1747172878555,0.23272279,104310.0,104300.0,0.01642479]
[1747172878819,0.33003219,104310.0,104300.0,0.01642479]
[1747172879819,0.33003219,104310.0,104300.0,0.0169061]
[1747172880250,0.33303219,104310.0,104300.0,0.0159061]
[1747172880697,0.33303219,104310.0,104300.0,0.0149061]
[1747172881664,0.33303219,104310.0,104300.0,0.0139061]
[1747172881888,0.33303219,104310.0,104300.0,0.00048131]
[1747172891176,0.33203219,104310.0,104300.0,0.00048131]
[1747172891547,0.33503219,104310.0,104300.0,0.00048131]
[1747172892979,0.33303219,104310.0,104300.0,0.00048131]
[1747172893479,0.33603219,104310.0,104300.0,0.00148131]
[1747172894615,0.30463219,104310.0,104300.0,0.19889174]
[1747172894826,0.30463219,104310.0,104300.0,1.16441171]
[1747172894827,0.02517241,104310.0,104300.0,1.16441171]
[1747172895062,0.21690858,104310.0,104300.0,1.14523672]
[1747172895285,0.03475894,104310.0,104300.0,1.17399869]
[1747172895500,0.04434565,104310.0,104300.0,1.17399869]
[1747172895741,0.006,104310.0,104300.0,1.18358577]
[1747172896139,0.00658524,104320.0,104310.0,0.56049548]
[1747172896353,0.01158414,104330.0,104320.0,0.24477434]
[1747172896571,0.002,104330.0,104320.0,1.63339929]
[1747172897407,0.0307481,104350.0,104340.0,0.23643245]
[1747172897610,0.0307481,104350.0,104340.0,1.01561331]
[1747172897969,0.0307481,104350.0,104340.0,1.03641299]
[1747172898439,0.002,104350.0,104340.0,1.04599639]
[1747172898653,0.01163082,104350.0,104340.0,1.04599639]
[1747172898863,0.01363082,104350.0,104340.0,1.04599639]
[1747172899288,0.01363082,104350.0,104340.0,0.96023663]
[1747172899501,0.01363082,104350.0,104340.0,0.95163663]
[1747172900016,0.01663082,104350.0,104340.0,0.95263663]
[1747172900189,0.01663082,104350.0,104340.0,1.25209773]
[1747172900395,0.01463072,104350.0,104340.0,1.26069773]
[1747172900612,0.02421321,104350.0,104340.0,1.26469773]
[1747172900927,0.01463072,104350.0,104340.0,1.26469773]
[1747172901409,0.0172,104370.0,104340.0,2.07707232]
[1747172901661,0.002,104370.0,104360.0,1.16131194]
[1747172901899,0.01158065,104370.0,104360.0,1.48239084]
[1747172902162,0.03074241,104370.0,104360.0,1.44792743]
[1747172902386,0.03074232,104370.0,104360.0,1.4839664]
[1747172902619,0.04990472,104370.0,104360.0,1.45750936]
[1747172902842,0.04032343,104370.0,104360.0,1.4670912]
[1747172903065,0.02216139,104370.0,104360.0,1.4383454]